Cogmind - Beta 16 @@@ ROGUE MODE // 2026.01.16 @ 20:19:12 Player: leto Result: Destroyed by B-99 Colossus with Multirail Performance ------------- Evolutions (9) 4500 Regions Visited (27) 5400 Robots Destroyed (176) 880 Value Destroyed (4501) 4501 Prototype IDs (90) 1800 Alien Tech Used (0) 0 Bonus (6665) 6665 TOTAL SCORE: 23746 Bonus ------- High Alert Combat Kills 144 Follower Combat Kills 739 Entered Garrisons 200 Aligned with FarCom 300 Met Data Miner 300 Met Warlord at Base 500 MAIN.C Attacked Warlord 500 Met Warlord at Research 2000 Invited to Help at Command 2000 Friendly Fire -18 Cogmind --------- Core Integrity 0/1600 Matter 153/300 Energy 98/100 System Corruption 5% Temperature Cool (9) Movement Core (50) Location -1/Garrison Parts ------- > --- POWER (2) -------- (None) > --- PROPULSION (5) --- (None) > --- UTILITY (16) ----- (None) > --- WEAPON (2) ------- (None) > --- INVENTORY (5) ---- Micro Antimatter Reactor Advanced Phase Shifter Smartbomb Launcher Peak State ------------ > --- POWER ------------ Micro Antimatter Reactor Micro Antimatter Reactor > --- PROPULSION ------- Experimental Cesium-ion Thruster Experimental Cesium-ion Thruster Diametric Drive Improved Diametric Drive Improved Diametric Drive > --- UTILITY ---------- Experimental Heat Sink Small Storage Unit Advanced Energy Well Advanced Sensor Array Advanced Signal Interpreter Advanced Terrain Scanner Advanced Terrain Scan Processor Experimental Cloaking Device Experimental Propulsion Shielding Advanced Hacking Suite Advanced Hacking Suite Experimental Hacking Suite Advanced System Shield Advanced System Shield > --- WEAPON ----------- Advanced Datajack Power Maul > --- INVENTORY -------- Field Propulsion Drive Cooled Nuclear Pulse Thruster Advanced Signal Interpreter Advanced Terrain Scanner Advanced System Restoration Module Micro-nuke Launcher Micro-nuke Launcher Field Lobotomy Kit [Rating: 155] Favorites ----------- Power Micro Antimatter Reactor Engine Heavy Ion Engine Power Core Micro Nuclear Core Reactor Micro Antimatter Reactor Propulsion Improved VTOL Module Treads Light Treads Flight Unit Improved VTOL Module Utility Advanced System Shield Device Advanced Terrain Scanner Storage Small Storage Unit Processor Advanced Terrain Scan Processor Hackware Advanced System Shield Protection Improved Propulsion Shielding Weapon Assault Rifle Energy Gun Improved Medium Laser Energy Cannon Vortex Cannon Ballistic Gun Assault Rifle Launcher Mini Grenade Launcher Special Weapon Field Lobotomy Kit Impact Weapon Power Maul Slashing Weapon Ripper Special Melee Weapon Improved Datajack Build | -11 -10 -10 -9 -9 -9 -8 -8 -8 -7 -6 -6 -6 -6 -6 -6 -5 -5 -5 -5 -5 -4 -4 -3 -3 -2 -1 -1 ------- Run | Yrd Mat Min Mat Min Exi Min Mat Sto Fac Fac Was Fac Low Low Dat Pro Fac Upp Upp War Pro Fac Res Arm Res Acc Gar Slots Evolved 18 | . . . 2 . . . 2 . 2 2 . . . . . . 2 . . . . 2 2 . 2 2 . Power 1 | . . . . . . . . . . . . . . . . . . . . . . . 1 . . . . Propulsion 3 | . . . 1 . . . . . . 1 . . . . . . . . . . . . 1 . . . . Utility 14 | . . . 1 . . . 2 . 2 1 . . . . . . 2 . . . . 2 . . 2 2 . Weapon . | . . . . . . . . . . . . . . . . . . . . . . . . . . . . Parts Attached 188 | 7 9 1 18 3 . 1 10 17 21 10 1 14 1 . . 1 17 2 1 8 1 9 6 1 14 14 1 Power 23 | 1 1 . 1 . . . 1 2 2 . . 3 1 . . 1 1 . . . 1 3 1 . 1 3 . Engine 8 | 1 . . 1 . . . 1 2 1 . . 1 . . . . . . . . 1 . . . . . . Core 12 | . 1 . . . . . . . 1 . . 2 1 . . 1 1 . . . . 3 . . . 2 . Reactor 3 | . . . . . . . . . . . . . . . . . . . . . . . 1 . 1 1 . Propulsion 43 | 2 1 . 10 2 . . 3 6 3 1 . 1 . . . . 5 . . 2 . 1 . 1 1 4 . Treads 22 | 2 1 . 9 2 . . 3 5 . . . . . . . . . . . . . . . . . . . Leg . | . . . . . . . . . . . . . . . . . . . . . . . . . . . . Wheel . | . . . . . . . . . . . . . . . . . . . . . . . . . . . . Hover . | . . . . . . . . . . . . . . . . . . . . . . . . . . . . Flight 21 | . . . 1 . . . . 1 3 1 . 1 . . . . 5 . . 2 . 1 . 1 1 4 . Utility 74 | 1 4 . 2 . . . 3 2 11 7 1 6 . . . . 7 2 . 3 . 5 3 . 10 7 . Device 34 | . 3 . . . . . 2 1 2 2 1 1 . . . . 4 1 . 2 . 2 1 . 6 6 . Storage 6 | 1 1 . 1 . . . . . 1 . . . . . . . . . . 1 . . . . 1 . . Processor 8 | . . . 1 . . . . . 3 . . . . . . . . 1 . . . . . . 3 . . Hackware 17 | . . . . . . . . . 3 5 . 4 . . . . 2 . . . . 2 1 . . . . Protection 9 | . . . . . . . 1 1 2 . . 1 . . . . 1 . . . . 1 1 . . 1 . Artifact . | . . . . . . . . . . . . . . . . . . . . . . . . . . . . Weapon 48 | 3 3 1 5 1 . 1 3 7 5 2 . 4 . . . . 4 . 1 3 . . 2 . 2 . 1 Energy Gun 7 | . . . 1 . . . 1 3 . . . . . . . . 1 . . 1 . . . . . . . Energy Cannon 1 | . . . . . . . . . . . . . . . . . . . . 1 . . . . . . . Ballistic Gun 11 | 3 1 . 2 1 . . 1 2 1 . . . . . . . . . . . . . . . . . . Ballistic Cannon . | . . . . . . . . . . . . . . . . . . . . . . . . . . . . Launcher 11 | . 1 . 1 . . 1 1 2 2 . . . . . . . . . . . . . 1 . 1 . 1 Special Weapon 3 | . . . . . . . . . . . . 1 . . . . 1 . . 1 . . . . . . . Impact Weapon 8 | . 1 . 1 . . . . . 1 1 . 2 . . . . 1 . . . . . 1 . . . . Slashing Weapon 2 | . . . . . . . . . . . . . . . . . 1 . 1 . . . . . . . . Piercing Weapon . | . . . . . . . . . . . . . . . . . . . . . . . . . . . . Special Melee Weapon 5 | . . 1 . . . . . . 1 1 . 1 . . . . . . . . . . . . 1 . . Unidentified Prototypes 34 | . . . 3 . . . 1 8 1 1 . 2 . . . . 1 . . 7 . 2 2 . 5 1 . Corrupted Parts 1 | . . . . . . . . . . . . . . . . . . . . . . . . . . 1 . System Corruption 4 | . . . . . . . . . . . . . . . . . . . . . . . . . . 4 . Parts Lost 57 | . . . 2 . . . 1 4 1 2 . 1 . . . 2 3 . . . . 3 . 7 4 17 10 Power 9 | . . . . . . . . . . . . . . . . 1 1 . . . . 2 . 1 . 2 2 Propulsion 13 | . . . . . . . . 3 . . . . . . . . 1 . . . . . . 1 . 5 3 Utility 24 | . . . . . . . . 1 1 1 . . . . . . 1 . . . . 1 . 4 3 8 4 Weapon 11 | . . . 2 . . . 1 . . 1 . 1 . . . 1 . . . . . . . 1 1 2 1 Highest Loss Streak 10 | . . . 1 . . . 1 1 1 1 . 1 . . . 2 2 . . . . 1 . 7 2 7 10 To Critical Strikes . | . . . . . . . . . . . . . . . . . . . . . . . . . . . . Average Backups 12 | 2 9 13 18 25 25 25 24 24 8 7 8 7 8 8 8 7 6 8 8 8 8 7 8 8 7 7 5 Power 1 | . 1 1 2 3 3 3 3 3 . . 1 . 1 1 1 . . . . . . . . 1 . 1 1 Propulsion 3 | 1 1 1 3 9 9 9 9 8 3 1 1 . 2 2 2 2 2 3 3 2 2 2 2 2 1 2 . Utility 4 | . 2 5 6 6 5 5 5 6 1 3 4 3 4 4 4 4 3 3 3 4 4 3 3 3 3 2 1 Weapon 2 | . 4 5 4 6 6 7 5 5 2 1 1 . . . . . . 1 . . . . 1 1 1 1 2 Tool/Special . | . . . . . . . . . . . . . . . . . . . . . . . . . . . . Unused Backups 39 | . 3 . 6 1 . . . 8 5 3 . 1 . . . . 2 . . 1 1 . . . 3 3 2 Power 7 | . 1 . 2 . . . . 2 1 . . 1 . . . . . . . . . . . . . . . Propulsion 14 | . 1 . 2 . . . . 6 . . . . . . . . 2 . . 1 . . . . . 2 . Utility 12 | . 1 . 1 . . . . . 3 3 . . . . . . . . . . 1 . . . 2 1 . Weapon 6 | . . . 1 1 . . . . 1 . . . . . . . . . . . . . . . 1 . 2 Tool/Special . | . . . . . . . . . . . . . . . . . . . . . . . . . . . . Average Slot Usage (%) 94 | . 98 100 97 100 100 100 94 96 88 97 93 93 100 100 94 93 87 94 98 100 100 97 97 98 89 75 45 Engine 3 | . 2 . 7 11 11 11 9 9 2 . . . . . . . . . . . 2 . . . . . . Core 3 | . 11 14 3 . . . . . 4 6 6 5 6 6 6 6 4 5 5 5 2 4 4 4 . 3 2 Reactor 1 | . . . . . . . . . . . . . . . . . . . . . . . 2 4 7 4 . Treads 11 | . 28 28 30 33 33 33 27 25 2 . . . . . . . . . . . . . . . . . . Flight 14 | . . . . . . . . . 20 26 26 25 26 26 26 26 22 23 23 23 23 20 22 22 21 19 11 Device 10 | . 12 14 11 11 11 11 15 18 9 6 11 4 5 6 6 4 5 11 11 10 11 5 4 8 12 16 14 Storage 7 | . 14 14 11 11 11 11 9 9 4 6 6 6 6 6 6 6 5 5 5 5 5 5 4 4 6 5 3 Processor 7 | . . . 10 11 11 11 9 . 10 6 6 6 6 6 6 6 5 10 11 11 11 10 7 3 6 8 6 Hackware 15 | . . . . . . . . . 15 24 26 25 26 26 26 26 29 29 29 29 29 29 33 32 21 10 3 Protection 5 | . . . . . . . 6 14 6 6 1 7 7 6 6 7 4 . . . . 8 5 3 3 2 . Energy Gun 2 | . . . 2 11 . . 13 10 1 . . . . . . . . . . . . . . . . . . Ballistic Gun 4 | . 27 24 18 11 . . 3 6 . . . . . . . . . . . . . . . . . . . Impact Weapon 3 | . . . . . 10 3 . . 2 5 6 5 6 6 6 6 3 5 5 5 5 4 4 4 4 3 3 Special Melee Weapon 1 | . . 3 . . 10 11 . . 1 5 . . . . . . . . . . . . . . 1 . . Peak Build Rating 155 | 6 12 10 22 22 22 22 31 35 45 61 60 71 69 68 68 68 86 83 86 103 103 115 138 138 155 140 98 Average Rating 62 | 4 9 10 15 20 21 21 28 32 39 55 60 63 68 68 66 65 71 82 85 91 96 108 129 135 138 121 68 On Entrance 60 | . 6 10 10 20 22 22 21 31 32 39 60 60 68 68 68 68 66 83 82 86 97 96 115 137 98 140 98 Avg Prop Armor Cover (%) 6 | . . . 8 . . . . . . 13 . . . . . . . . . . . . 5 . . . . Naked Turns 28 | . . . . . . . . . . . . . . . . . . . . . . . . . . . 28 Heaviest Build 106 | 11 30 30 96 95 95 94 100 106 100 20 17 24 20 18 18 18 18 15 18 18 27 22 27 27 41 32 21 Greatest Support 65 | 40 40 40 60 63 63 63 65 65 60 20 20 20 20 20 20 20 22 20 20 24 24 24 31 31 31 32 30 Greatest Overweight (x) 5 | 1 . . 1 1 1 1 1 2 1 5 . 1 . . . . . . . . 1 . . . 1 1 1 Average Overweight (x) . | . . . . 1 1 1 1 1 . . . . . . . . . . . . . . . . . . . Largest Inventory Capacity 25 | 8 15 15 25 25 25 25 25 25 25 8 8 8 8 8 8 8 8 8 8 8 8 8 8 8 8 8 8 Average Capacity 13 | 7 11 15 20 25 25 25 25 25 9 8 8 8 8 8 8 8 8 8 8 8 8 8 8 8 8 8 6 Most Carried 25 | 4 13 13 25 25 25 25 25 25 24 8 8 8 8 8 8 8 8 8 8 8 8 8 8 8 8 8 8 Average Carried 12 | 2 9 13 18 24 24 25 24 24 8 7 8 7 8 8 8 7 6 8 7 7 8 7 7 8 7 7 6 Final Capacity 25 | 8 15 15 25 25 25 25 25 25 8 8 8 8 8 8 8 8 8 8 8 8 8 8 8 8 8 8 5 Final Carried 25 | 4 13 13 25 25 25 25 25 24 8 8 8 8 8 8 8 7 8 8 8 8 8 8 8 8 8 8 4 Class Distribution -------------------- 25% | Wizard-Scout 24% | Mutant 17% | Hacker-Scout 14% | Scavenger-Mutant 7% | Hacker-Sprinter 4% | Wizard-Ninja Dominant Class ---------------- Mutant | -10/Materials Mutant | -10/Mines Mutant | -9/Materials Scavenger-Mutant | -9/Mines Mutant | -9/Exiles Mutant | -8/Mines Mutant | -8/Materials Scavenger-Mutant | -8/Storage Hacker-Scout | -7/Factory Hacker-Scout | -6/Factory Hacker-Scout | -6/Waste Hacker-Scout | -6/Factory Hacker-Sprinter | -6/Lower Caves Hacker-Sprinter | -6/Lower Caves Hacker-Sprinter | -6/Data Miner Hacker-Sprinter | -5/Proximity Caves Wizard-Scout | -5/Factory Wizard-Scout | -5/Upper Caves Wizard-Scout | -5/Upper Caves Wizard-Scout | -5/Warlord Wizard-Scout | -4/Proximity Caves Wizard-Scout | -4/Factory Wizard-Scout | -3/Research Wizard-Ninja | -3/Armory Wizard-Scout | -2/Research Hacker-Ninja | -1/Access Infiltrator-Mutant | -1/Garrison Resources | -11 -10 -10 -9 -9 -9 -8 -8 -8 -7 -6 -6 -6 -6 -6 -6 -5 -5 -5 -5 -5 -4 -4 -3 -3 -2 -1 -1 ----------- Run | Yrd Mat Min Mat Min Exi Min Mat Sto Fac Fac Was Fac Low Low Dat Pro Fac Upp Upp War Pro Fac Res Arm Res Acc Gar Matter Collected 4975 | 85 691 . 746 69 . 98 313 567 194 424 . 493 35 25 . 65 262 20 . . 55 370 196 . 180 87 . Remotely . | . . . . . . . . . . . . . . . . . . . . . . . . . . . . Salvage Created 6311 | . 926 . 929 93 . 79 681 992 143 494 . 504 35 . . 26 398 . . . . 237 225 . 367 134 48 Parts 318 | . 57 . 70 4 . 7 37 60 14 17 . 20 3 . . 2 7 . . . . 2 5 . 5 8 . Haulers Intercepted 25 | . 1 . 4 . . . 1 2 . 3 . 3 . . . . 4 . . . . 2 2 . 3 . . Recyclers Shooed 12 | . 3 . 2 1 . . 2 4 . . . . . . . . . . . . . . . . . . . Parts Field Recycled . | . . . . . . . . . . . . . . . . . . . . . . . . . . . . Retrieved Matter . | . . . . . . . . . . . . . . . . . . . . . . . . . . . . Parts Self-Destructed 11 | . . . . . . . . . . . . . 2 1 . 4 . 1 . . 3 . . . . . . Prevented . | . . . . . . . . . . . . . . . . . . . . . . . . . . . . Parts Restored . | . . . . . . . . . . . . . . . . . . . . . . . . . . . . Kills | -11 -10 -10 -9 -9 -9 -8 -8 -8 -7 -6 -6 -6 -6 -6 -6 -5 -5 -5 -5 -5 -4 -4 -3 -3 -2 -1 -1 ------- Run | Yrd Mat Min Mat Min Exi Min Mat Sto Fac Fac Was Fac Low Low Dat Pro Fac Upp Upp War Pro Fac Res Arm Res Acc Gar Combat Hostiles Destroyed 96 | . 16 . 21 . . 3 16 21 3 1 . 6 1 . . 3 . . . . . . . . 1 3 1 Melee 7 | . . . . . . . . . 1 1 . 1 1 . . 1 . . . . . . . . 1 1 . Guns 46 | . 13 . 12 . . . 9 12 . . . . . . . . . . . . . . . . . . . AOE 42 | . 3 . 9 . . 3 7 9 2 . . 5 . . . 2 . . . . . . . . . 1 1 Classes Destroyed 15 | . 8 . 2 . . 1 1 . 1 1 . . . . . . . . . . . . . . . 1 . Worker 17 | . 3 . 1 1 . . 4 1 2 5 . . . . . . . . . . . . . . . . . Builder 8 | . . . 1 1 . 1 1 . . 4 . . . . . . . . . . . . . . . . . Tunneler 3 | . 1 . . . . . . . 1 . . 1 . . . . . . . . . . . . . . . Hauler 25 | . 1 . 4 . . . 1 2 . 3 . 3 . . . . 4 . . . . 2 2 . 3 . . Recycler 7 | . 3 . 1 1 . . 1 1 . . . . . . . . . . . . . . . . . . . Operator 13 | . 2 . 2 . . . . 1 3 . . 3 . . . . . . . . . . 1 . . 1 . Drone 3 | . . . . . . . . . . 1 . . . . . 2 . . . . . . . . . . . Watcher 8 | . 1 . 1 . . . . . . 1 . 3 . . . . . . . . . 1 1 . . . . Swarmer 31 | . 4 . 9 . . . 7 4 2 . . 4 . . . 1 . . . . . . . . . . . Cutter 3 | . . . . . . . . . . . . . . . . . . . . . . . . . . 3 . Grunt 33 | . 12 . 6 . . 2 3 10 . . . . . . . . . . . . . . . . . . . Duelist 1 | . . . . . . 1 . . . . . . . . . . . . . . . . . . . . . Sentry 16 | . . . 6 . . . 5 5 . . . . . . . . . . . . . . . . . . . Hunter 5 | . . . . . . . 1 2 . . . . . . . . . . . . . . . . 1 . 1 Programmer 4 | . . . . . . . . . 1 . . 2 1 . . . . . . . . . . . . . . Best Kill Streak 5 | . 4 . 4 1 . 4 5 4 2 2 . 5 1 . . 3 1 . . . . 1 1 . 1 3 1 Combat Bots Only 5 | . 3 . 4 . . 3 5 4 1 1 . 4 1 . . 3 . . . . . . . . 1 3 1 Max Kills in Single Turn 4 | . 3 . 3 1 . 2 4 3 2 1 . 3 1 . . 1 1 . . . . 1 1 . 1 1 1 Gunslinging . | . . . . . . . . . . . . . . . . . . . . . . . . . . . . Exploded 3 | . 2 . 3 . . 1 3 3 1 . . 2 . . . 1 . . . . . . . . . 1 1 Melee 1 | . . . . . . . . . 1 1 . 1 1 . . 1 . . . . . . . . 1 1 . Uniques/NPCs Destroyed . | . . . . . . . . . . . . . . . . . . . . . . . . . . . . Combat | -11 -10 -10 -9 -9 -9 -8 -8 -8 -7 -6 -6 -6 -6 -6 -6 -5 -5 -5 -5 -5 -4 -4 -3 -3 -2 -1 -1 -------- Run | Yrd Mat Min Mat Min Exi Min Mat Sto Fac Fac Was Fac Low Low Dat Pro Fac Upp Upp War Pro Fac Res Arm Res Acc Gar Hostile Shots Fired 914 | . 54 . 92 . . 4 69 80 43 23 . 68 7 18 . 30 59 2 . . 3 42 11 15 43 116 135 Missed 383 | . 24 . 25 . . . 18 18 20 11 . 42 1 10 . 12 29 2 . . 1 19 5 9 24 64 49 Hits 531 | . 30 . 67 . . 4 51 62 23 12 . 26 6 8 . 18 30 . . . 2 23 6 6 19 52 86 Melee 13 | . . . . . . . . . . . . 1 . . . . . . . . . . . 1 . 11 . Projectile 518 | . 30 . 67 . . 4 51 62 23 12 . 25 6 8 . 18 30 . . . 2 23 6 5 19 41 86 AOE 5 | . . . . . . . . . . . . . . . . . . . . . . . . 2 . 3 . Critical Strikes 33 | . 1 . 1 . . . 3 3 . . . 1 . . . . 1 . . . . 3 1 1 2 12 4 Actively Blocked 5 | . . . . . . . 1 . . . . . . . . . 1 . . . . 1 . . . 2 . Part Disruptions 1 | . . . . . . . . . . . . . 1 . . . . . . . . . . . . . . Damage Taken 10470 | . 405 . 843 . . 130 800 1021 383 100 . 583 91 73 . 279 517 . . . 61 825 135 613 454 1418 1739 Core 3476 | . 67 . 169 . . 65 95 119 154 27 . 292 29 23 . 49 236 . . . . 267 23 166 90 293 1312 Absorbed by Shields 140 | . . . . . . . . . . . . . . . . . . . . . . . . . . . 140 Redirected to Shielding 999 | . . . . . . . 12 13 80 3 . 77 10 3 . 49 82 . . . . 329 . 43 113 185 . Regen/Repaired (Parts) 600 | . . . . . . . 27 . 93 . . 98 . . . . 85 . . 53 . 88 . . 156 . . Core Remaining (%) 73 | 100 . 73 . . . 41 . 61 78 . . . . . . 50 . . . . 76 76 . 85 93 . . Volleys Fired 293 | . 60 . 78 3 . 8 56 58 9 . . 9 . . . 3 4 . . . 1 . . . . 2 2 Largest 2 | . 2 . 2 2 . 1 2 2 1 . . 1 . . . 1 1 . . . 1 . . . . 1 1 Hottest 225 | . 50 . 76 76 . 33 112 106 33 . . 30 . . . 30 225 . . . . . . . . 49 49 Shots Fired 512 | . 120 . 139 6 . 8 104 105 9 . . 9 . . . 3 4 . . . 1 . . . . 2 2 Gun 455 | . 117 . 132 6 . . 98 95 3 . . . . . . . 4 . . . . . . . . . . Cannon . | . . . . . . . . . . . . . . . . . . . . . . . . . . . . Launcher 54 | . 3 . 7 . . 8 6 10 6 . . 8 . . . 3 . . . . . . . . . 1 2 Special 3 | . . . . . . . . . . . . 1 . . . . . . . . 1 . . . . 1 . Kinetic 290 | . 117 . 126 3 . . 13 28 3 . . . . . . . . . . . . . . . . . . Thermal 146 | . . . 6 3 . . 85 48 . . . . . . . . 4 . . . . . . . . . . Explosive 54 | . 3 . 7 . . 8 6 10 6 . . 8 . . . 3 . . . . . . . . . 1 2 Electromagnetic 19 | . . . . . . . . 19 . . . . . . . . . . . . . . . . . . . Robot Hit Streak 20 | . 8 . 20 8 . 4 19 14 3 . . 6 . . . 5 2 . . . 3 . . . . 1 . Robot Miss Streak 5 | . 3 . 5 1 . 1 3 3 5 . . 1 . . . 1 . . . . . . . . . 1 . Penetration Max . | . . . . . . . . . . . . . . . . . . . . . . . . . . . . Secondary Targets 2 | . 1 . 1 . . . . . . . . . . . . . . . . . . . . . . . . Max Gunslinging Chain 1 | . 1 . 1 . . . . . . . . . . . . . . . . . . . . . . . . Shots Hit Robots 436 | . 79 . 92 4 2 7 78 69 14 20 . 20 2 . . 2 6 . . . 1 9 9 . 15 7 . Core Hits 237 | . 46 . 44 1 . 10 41 45 10 4 . 15 1 . . 1 4 . . . . 1 1 . 2 3 8 Critical Kills 5 | . . . 2 . . . . . . . . . . . . . 1 . . . . . . . 1 1 . Critical Parts Destroyed 19 | . 1 . . . . . . . 2 6 . 4 1 . . 1 . . . . . 1 1 . 2 . . Critical Strikes 36 | . 1 . 3 . . . 6 2 2 6 . 4 1 . . 1 1 . . . . 2 3 . 3 1 . Burn 9 | . . . 1 . . . 6 2 . . . . . . . . . . . . . . . . . . . Destroy 3 | . 1 . 2 . . . . . . . . . . . . . . . . . . . . . . . . Smash 21 | . . . . . . . . . 2 6 . 4 1 . . 1 1 . . . . 1 1 . 3 1 . Sever 3 | . . . . . . . . . . . . . . . . . . . . . . 1 2 . . . . Melee Attacks 521 | . 2 . 2 . 2 1 2 8 33 55 2 79 5 3 . 5 32 7 2 . 1 95 58 31 57 33 6 Impact 465 | . 2 . 2 . . . 2 8 33 52 2 79 5 3 . 5 32 7 . . 1 75 40 25 53 33 6 Slashing 46 | . . . . . . . . . . . . . . . . . . . 2 . . 20 18 6 . . . Piercing . | . . . . . . . . . . . . . . . . . . . . . . . . . . . . Sneak Attacks 42 | . . . . . 2 1 . . 2 15 . 4 . . . . 3 . . . . 3 5 . 5 2 . Combat Hostiles . | . . . . . . . . . . . . . . . . . . . . . . . . . . . . Follow-up Attacks 4 | . . . . . . . . . . . . . . . . . . . . . . 2 2 . . . . Damage Inflicted 15147 | . 1286 . 1770 124 . 356 1723 2265 703 1552 . 1575 111 . . 222 438 . . . . 525 639 . 965 461 432 Guns 4958 | . 1028 . 1263 67 . . 1282 1220 49 . . . . . . . 49 . . . . . . . . . . Cannons . | . . . . . . . . . . . . . . . . . . . . . . . . . . . . Explosions 3922 | . 248 . 506 . . 356 425 962 260 . . 528 . . . 138 . . . . . . . . . 87 412 Melee 6073 | . . . . . . . . . 394 1545 . 1047 111 . . 84 389 . . . . 525 639 . 965 374 . Ramming 194 | . 10 . 1 57 . . 16 83 . 7 . . . . . . . . . . . . . . . . 20 Kinetic 2715 | . 1028 . 1177 15 . . 161 285 49 . . . . . . . . . . . . . . . . . . Thermal 2051 | . . . 86 52 . . 1121 743 . . . . . . . . 49 . . . . . . . . . . Explosive 3839 | . 248 . 506 . . 356 425 879 260 . . 528 . . . 138 . . . . . . . . . 87 412 Electromagnetic 275 | . . . . . . . . 275 . . . . . . . . . . . . . . . . . . . Impact 5507 | . . . . . . . . . 394 1545 . 1047 111 . . 84 389 . . . . 167 431 . 965 374 . Slashing 566 | . . . . . . . . . . . . . . . . . . . . . . 358 208 . . . . Piercing . | . . . . . . . . . . . . . . . . . . . . . . . . . . . . Highest Corruption 9 | . . . . . . . . . 2 1 8 8 7 7 7 7 1 1 1 1 . 4 . 9 . 6 5 Average Corruption 3 | . . . . . . . . . 1 1 5 6 5 7 7 7 1 1 1 1 . 3 . 5 . 3 3 Corruption Purged 11 | . . . . . . . . . . . . 5 . . . . . . . . . . . . . 6 . Corruption Blocked . | . . . . . . . . . . . . . . . . . . . . . . . . . . . . Effects 90 | . . . . . . . . . 4 6 2 49 3 6 1 7 4 1 . . . 5 . . . 2 . Message Errors 29 | . . . . . . . . . 1 2 . 15 2 1 1 3 . 1 . . . 1 . . . 2 . Matter Fused 25 | . . . . . . . . . 1 2 1 14 . 2 . 1 1 . . . . 3 . . . . . Heat Flow Errors 6 | . . . . . . . . . . 1 . 2 . . . 1 2 . . . . . . . . . . Energy Discharges 10 | . . . . . . . . . . 1 . 8 . 1 . . . . . . . . . . . . . Parts Rejected 1 | . . . . . . . . . 1 . . . . . . . . . . . . . . . . . . Parts Fused 3 | . . . . . . . . . . . . 2 . 1 . . . . . . . . . . . . . Data Loss (minor) 12 | . . . . . . . . . . . . 7 1 . . 2 1 . . . . 1 . . . . . Data Loss (major) 2 | . . . . . . . . . 1 . . 1 . . . . . . . . . . . . . . . Alerts 2 | . . . . . . . . . . . 1 . . 1 . . . . . . . . . . . . . Overload Shots 1 | . . . . . . . . . . . . . . . . . 1 . . . . . . . . . . Overflow Damage 2594 | . . . 6 4 . . 10 6 142 770 . 654 42 . . 114 62 . . . . 80 173 . 342 189 . Projectiles . | . . . . . . . . . . . . . . . . . . . . . . . . . . . . Explosions 110 | . . . 6 . . . 10 6 36 . . 5 . . . 30 . . . . . . . . . 17 . Melee 2484 | . . . . 4 . . . . 106 770 . 649 42 . . 84 62 . . . . 80 173 . 342 172 . Knockbacks 11 | . . . . . . . . . 2 1 . 1 1 . . . 1 . . . . . 3 . 1 1 . Impact 11 | . . . . . . . . . 2 1 . 1 1 . . . 1 . . . . . 3 . 1 1 . Kinetic . | . . . . . . . . . . . . . . . . . . . . . . . . . . . . Secondary . | . . . . . . . . . . . . . . . . . . . . . . . . . . . . Self-Inflicted Damage 574 | . 37 . . . . 69 82 121 66 3 . 133 . . . . . . . . . . . . . 54 9 Shots 18 | . 1 . . . . 2 2 4 2 . . 6 . . . . . . . . . . . . . 1 . Rammed 23 | . 2 . 1 3 . . 2 8 . 3 . . . . . . . . . . . . . . . . 4 Targets Rammed 25 | . 2 . 1 4 . . 2 9 . 3 . . . . . . . . . . . . . . . . 4 Kicked . | . . . . . . . . . . . . . . . . . . . . . . . . . . . . Crushed 2 | . . . . 1 . . . 1 . . . . . . . . . . . . . . . . . . . Highest Temperature 325 | . 16 . 18 . . . 27 . 2 132 . 141 . 8 . 288 186 . . 8 2 6 325 197 316 133 37 Average Temperature 83 | . 6 . 5 . . . 12 . 1 80 . 84 . 5 . 149 60 . . 3 1 3 87 67 131 28 19 Received Heat Transfer 1584 | . 210 . 276 . . 36 288 342 42 21 . 15 . 30 . 36 36 . . . 9 42 12 18 18 99 54 Effects 7 | . . . . . . . . . . . . . . . . 2 . . . . . . 2 . 3 . . Energy Bleed 3 | . . . . . . . . . . . . . . . . 1 . . . . . . . . 2 . . Interference 4 | . . . . . . . . . . . . . . . . 1 . . . . . . 2 . 1 . . Siege Activations . | . . . . . . . . . . . . . . . . . . . . . . . . . . . . Martial Activations . | . . . . . . . . . . . . . . . . . . . . . . . . . . . . Shielding Activations . | . . . . . . . . . . . . . . . . . . . . . . . . . . . . Robots Disrupted . | . . . . . . . . . . . . . . . . . . . . . . . . . . . . Combat Hostiles . | . . . . . . . . . . . . . . . . . . . . . . . . . . . . Robots Corrupted 21 | . . . . 1 . . . . 2 5 . 4 . . . . 1 . . . . 1 3 . 2 2 . Combat Hostiles 1 | . . . . . . . . . . . . . . . . . . . . . . . . . . 1 . Parts Fried 28 | . . . . 1 . . . . 9 7 . 2 . . . 2 2 . . . . 3 1 . . 1 . Impact Corruptions 73 | . . . . 1 . . . . 6 19 . 23 2 . . 2 3 . . . . 1 5 . 6 5 . Robots Melted . | . . . . . . . . . . . . . . . . . . . . . . . . . . . . Combat Hostiles . | . . . . . . . . . . . . . . . . . . . . . . . . . . . . Parts Melted 9 | . . . . . . . 6 3 . . . . . . . . . . . . . . . . . . . Heat Transferred 4923 | . . . 259 111 . . 2886 1593 . . . . . . . . 74 . . . . . . . . . . Parts Sabotaged . | . . . . . . . . . . . . . . . . . . . . . . . . . . . . Parts Stolen . | . . . . . . . . . . . . . . . . . . . . . . . . . . . . Parts Stripped . | . . . . . . . . . . . . . . . . . . . . . . . . . . . . Power Chain Reactions 1 | . . . . . . . . 1 . . . . . . . . . . . . . . . . . . . Alert | -11 -10 -10 -9 -9 -9 -8 -8 -8 -7 -6 -6 -6 -6 -6 -6 -5 -5 -5 -5 -5 -4 -4 -3 -3 -2 -1 -1 ------- Run | Yrd Mat Min Mat Min Exi Min Mat Sto Fac Fac Was Fac Low Low Dat Pro Fac Upp Upp War Pro Fac Res Arm Res Acc Gar Maximum Alert Level 3 | . 1 . 2 . . . 1 1 1 . . 3 . . . . 2 . . . . 1 1 . . . 1 Low Security (%) 76 | 100 27 100 16 100 . 100 88 79 92 100 100 33 . . . . 82 . . . . 92 98 100 100 100 85 Level 1 14 | . 72 . 23 . . . 11 20 7 . . 27 . . . . 16 . . . . 7 1 . . . 14 Level 2 8 | . . . 60 . . . . . . . . 36 . . . . 1 . . . . . . . . . . Level 3 . | . . . . . . . . . . . . 2 . . . . . . . . . . . . . . . Level 4 . | . . . . . . . . . . . . . . . . . . . . . . . . . . . . Level 5 . | . . . . . . . . . . . . . . . . . . . . . . . . . . . . High Security . | . . . . . . . . . . . . . . . . . . . . . . . . . . . . Max Security . | . . . . . . . . . . . . . . . . . . . . . . . . . . . . Peak Influence 705 | . 269 79 508 175 . 114 233 290 221 60 4 705 . . . . 446 . . . . 335 206 70 153 139 224 Initial 196 | . . 79 14 175 . . 28 51 119 29 4 . . . . . 196 . . . . 7 173 55 8 45 66 Average 130 | . 185 59 379 49 . 20 115 112 77 22 1 290 . . . . 117 . . . . 71 127 41 51 59 138 Influence Increases 9705 | . 600 . 1032 15 . 122 571 721 497 383 2 1391 30 125 . 195 926 30 . . 22 980 487 133 707 488 248 Destroy 0b10 Robot/C 2600 | . 320 . 580 . . 60 320 420 60 20 . 240 20 20 . 20 60 . . . 20 200 80 20 60 60 20 Destroy 0b10 Robot/NC 460 | . 55 . 60 15 . 5 35 25 35 70 . 50 . . . 10 40 . . . . 15 20 . 15 10 . Destroy Leader 722 | . 74 . 174 . . 10 92 104 20 18 . 82 10 . . . 30 . . . . 36 26 10 26 10 . Allied During Kill 185 | . . . 121 . . . . . . 2 . 8 . . . . 1 . . . 2 31 10 4 . 6 . Trap Triggered on 0b10 30 | . . . . . . . . . 10 . . . . . . . 20 . . . . . . . . . . Successful Hack 481 | . 27 . 10 . . . 13 11 87 35 . 85 . . . . 40 . . . . 72 17 . 30 54 . Select Force Hacks 30 | . . . . . . . . . . . . . . . . . . . . . . . . . 30 . . Disable Machine 480 | . 15 . . . . . 45 75 15 15 . 105 . . . . 105 . . . . 30 15 30 15 15 . Destroy Structure 1117 | . 19 . 42 . . 47 51 86 60 28 2 86 . . . . 120 . . . . 116 64 24 171 78 123 Advance Influence 150 | . . . . . . . . . . . . . . . . . 150 . . . . . . . . . . Partial Spotted 570 | . . . . . . . . . 15 15 . 75 . . . . 75 . . . . 120 90 15 90 45 30 Lose Combat Pursuer 2880 | . 90 . 45 . . . 15 . 195 180 . 660 . 105 . 165 285 30 . . . 360 165 30 270 210 75 Influence Decreases 9491 | . 396 165 619 467 . 48 522 581 699 431 15 715 301 158 372 120 555 286 77 113 10 661 712 223 646 482 117 Entered New Map 2047 | . . 125 25 277 . . 46 72 144 32 9 . 251 78 372 . 29 166 37 113 . 5 158 51 8 32 17 Time Decay 5783 | . 396 40 494 190 . 48 466 469 421 365 6 495 50 80 . 100 347 100 40 . 10 356 434 117 484 275 . Search Patrol Dispatched 200 | . . . . . . . . . 100 . . 100 . . . . . . . . . . . . . . . Lost Part 529 | . . . 20 . . . 10 40 10 16 . 10 . . . 20 25 . . . . 30 . 53 40 155 100 Lost Ally 767 | . . . 80 . . . . . 24 . . 110 . . . . 70 20 . . . 207 120 2 114 20 . Purge Threat 165 | . . . . . . . . . . 18 . . . . . . 84 . . . . 63 . . . . . Squads Dispatched 135 | . 3 . 6 . . . 2 4 15 15 . 25 . . . . 15 . . . . 20 12 1 5 12 . Investigation 64 | . 1 . 3 . . . 1 2 7 9 . 11 . . . . 10 . . . . 6 6 . 3 5 . Extermination 28 | . . . . . . . . . 5 4 . 5 . . . . 4 . . . . 4 3 . . 3 . Reinforcement 28 | . 2 . 2 . . . 1 2 . 2 . 6 . . . . 1 . . . . 5 . 1 2 4 . Assault 3 | . . . 1 . . . . . . . . . . . . . . . . . . 2 . . . . . Garrison 12 | . . . . . . . . . 3 . . 3 . . . . . . . . . 3 3 . . . . Intercept . | . . . . . . . . . . . . . . . . . . . . . . . . . . . . Searches Triggered 2 | . . . . . . . . . 1 . . 1 . . . . . . . . . . . . . . . Unchained Authorized 3 | . . . . . . . . . . . . . . . . . 1 1 . . . 1 . . . . . Data Miner Redirects 6 | . . . . . . . . . . . . . . . . . 2 . . . . . . . . 4 . Construction Impeded 2 | . . . . . . . . 1 . . . . . . . . . . . . . . . . . 1 . Haulers Reinforced 8 | . . . . . . . . . . 1 . 2 . . . . 1 . . . . 1 . . 2 1 . Active Scanning Responses . | . . . . . . . . . . . . . . . . . . . . . . . . . . . . Cargo Convoy Interrupts 1 | . . . . . . . . . . . . 1 . . . . . . . . . . . . . . . Stealth | -11 -10 -10 -9 -9 -9 -8 -8 -8 -7 -6 -6 -6 -6 -6 -6 -5 -5 -5 -5 -5 -4 -4 -3 -3 -2 -1 -1 --------- Run | Yrd Mat Min Mat Min Exi Min Mat Sto Fac Fac Was Fac Low Low Dat Pro Fac Upp Upp War Pro Fac Res Arm Res Acc Gar Distress Signals 40 | . 4 . 2 . . . 5 2 2 3 . 1 . . . . 4 . . . . 4 1 . 8 4 . Communications Jammed . | . . . . . . . . . . . . . . . . . . . . . . . . . . . . Distress Signals . | . . . . . . . . . . . . . . . . . . . . . . . . . . . . Times Spotted 492 | . 31 . 43 . . 3 28 28 28 21 5 61 1 12 . 12 28 3 . . 1 39 19 14 45 47 23 Peak Tracking Total 21 | . 7 . 5 . . 2 6 7 9 5 6 10 1 7 . 7 9 3 . . 1 13 6 10 10 21 18 Tactical Retreats 97 | . 3 . 2 . . . 1 . 8 8 . 21 . 2 . 4 9 2 . . . 11 5 2 8 9 2 ECM-based Alert Blocks 24 | . . . . . . . . . . . . . . . . . . . . . . . . . . 24 . Traps | -11 -10 -10 -9 -9 -9 -8 -8 -8 -7 -6 -6 -6 -6 -6 -6 -5 -5 -5 -5 -5 -4 -4 -3 -3 -2 -1 -1 ------- Run | Yrd Mat Min Mat Min Exi Min Mat Sto Fac Fac Was Fac Low Low Dat Pro Fac Upp Upp War Pro Fac Res Arm Res Acc Gar Traps Triggered 21 | . . . . . . . . 1 2 1 . 6 . . . . 3 . . . . 5 . . . . 3 Indirectly . | . . . . . . . . . . . . . . . . . . . . . . . . . . . . Trap Hack Attempts . | . . . . . . . . . . . . . . . . . . . . . . . . . . . . Triggered . | . . . . . . . . . . . . . . . . . . . . . . . . . . . . Disarmed 12 | . . . . . . . . . . . . 6 . . . . . . . . . . 6 . . . . Reprogrammed 16 | . . . . . . . . . 6 . . . . . . . 10 . . . . . . . . . . Reused 3 | . . . . . . . . . 1 . . . . . . . 2 . . . . . . . . . . Traps Extracted . | . . . . . . . . . . . . . . . . . . . . . . . . . . . . Installed . | . . . . . . . . . . . . . . . . . . . . . . . . . . . . Triggered 3 | . . . . . . . . . 1 . . . . . . . 2 . . . . . . . . . . Machines | -11 -10 -10 -9 -9 -9 -8 -8 -8 -7 -6 -6 -6 -6 -6 -6 -5 -5 -5 -5 -5 -4 -4 -3 -3 -2 -1 -1 ---------- Run | Yrd Mat Min Mat Min Exi Min Mat Sto Fac Fac Was Fac Low Low Dat Pro Fac Upp Upp War Pro Fac Res Arm Res Acc Gar Machines Disabled 32 | . 1 . . . . . 3 5 1 1 . 7 . . . . 7 . . . . 2 1 2 1 1 . Max in Single Turn 2 | . 1 . . . . . 1 2 1 1 . 1 . . . . 1 . . . . . 1 1 1 1 . Garrison Access 3 | . . . . . . . . . . . . . . . . . . . . . . 1 . . 2 . . Energy Cycler 1 | . . . . . . . . . . . . . . . . . . . . . . . . . . 1 . Machines Repaired . | . . . . . . . . . . . . . . . . . . . . . . . . . . . . Machines Dismantled . | . . . . . . . . . . . . . . . . . . . . . . . . . . . . Machines Sabotaged . | . . . . . . . . . . . . . . . . . . . . . . . . . . . . Overloaded Fab Kills . | . . . . . . . . . . . . . . . . . . . . . . . . . . . . Hacking | -11 -10 -10 -9 -9 -9 -8 -8 -8 -7 -6 -6 -6 -6 -6 -6 -5 -5 -5 -5 -5 -4 -4 -3 -3 -2 -1 -1 --------- Run | Yrd Mat Min Mat Min Exi Min Mat Sto Fac Fac Was Fac Low Low Dat Pro Fac Upp Upp War Pro Fac Res Arm Res Acc Gar Machines Accessed 158 | . 5 . 6 1 2 . 2 7 18 16 . 24 . . 4 . 17 1 2 6 . 23 12 2 3 7 . Terminals 89 | . 5 . 5 1 . . 1 7 12 10 . 12 . . . . 9 . . . . 12 9 1 . 5 . Fabricators 19 | . . . . . . . . . 2 3 . 6 . . . . 4 . . . . 3 1 . . . . Repair Stations 14 | . . . . . . . 1 . 2 1 . 3 . . . . 1 . . . . 5 . 1 . . . Recycling Units 2 | . . . . . . . . . . 1 . . . . . . . . . . . . . . 1 . . Scanalyzers 6 | . . . 1 . . . . . 1 . . 1 . . . . 1 . . . . 1 . . . 1 . Garrison Access 13 | . . . . . . . . . 1 1 . 2 . . . . 2 . . . . 2 2 . 2 1 . Total Hacks 643 | . 18 . 18 1 2 . 8 25 66 57 . 99 . . 31 . 103 1 4 13 . 100 61 3 5 28 . Successful 397 | . 10 . 10 1 2 . 4 13 40 28 . 54 . . 31 . 67 1 4 13 . 59 42 3 4 11 . Failed 244 | . 8 . 8 . . . 4 12 25 28 . 45 . . . . 36 . . . . 41 19 . 1 17 . Catastrophic 41 | . 1 . 2 . . . . 1 3 6 . 9 . . . . 8 . . . . 6 2 . . 3 . Database Lockouts 2 | . . . . . . . . . 1 1 . . . . . . . . . . . . . . . . . Manual 434 | . 18 . 14 . 1 . 3 17 51 43 . 59 . . . . 83 . . 2 . 77 46 1 4 15 . Terminals 444 | . 18 . 15 1 . . 3 25 49 46 . 55 . . . . 82 . . . . 69 57 2 . 22 . Fabricators 64 | . . . . . . . . . 4 6 . 30 . . . . 11 . . . . 11 2 . . . . Repair Stations 39 | . . . . . . . 5 . 4 1 . 9 . . . . 6 . . . . 13 . 1 . . . Recycling Units 2 | . . . . . . . . . . 1 . . . . . . . . . . . . . . 1 . . Scanalyzers 18 | . . . 3 . . . . . 6 . . 1 . . . . 1 . . . . 3 . . . 4 . Garrison Access 25 | . . . . . . . . . 3 3 . 4 . . . . 3 . . . . 4 2 . 4 2 . Terminal Hacks 191 | . 3 . 1 1 2 . 1 8 16 11 . 14 . . 31 . 34 1 4 13 . 21 26 1 . 3 . Record 33 | . 1 . . . 1 . . 1 1 1 . . . . 11 . . . 3 11 . . 3 . . . . Part Schematic 30 | . . . . . . . . . 2 1 . 1 . . 12 . 6 . . . . 5 3 . . . . Robot Schematic 5 | . . . . . . . . . . . . . . . 5 . . . . . . . . . . . . Robot Analysis 4 | . 1 . . . . . . . . . . . . . . . 1 . . . . . 2 . . . . Prototype ID Bank 6 | . . . . . . . . . . . . . . . 3 . 1 . . . . . 2 . . . . Open Door 5 | . . . . . . . . 1 . . . . . . . . . 1 1 2 . . . . . . . Level Access Points 3 | . . . . 1 . . . . . . . . . . . . 1 . . . . . . 1 . . . Branch Access Points 7 | . 1 . 1 . . . 1 . . . . 1 . . . . 1 . . . . . 1 . . 1 . Emergency Access Points 3 | . . . . . . . . . . . . . . . . . . . . . . . 1 . . 2 . Machine Index 3 | . . . . . . . . . . . . . . . . . 1 . . . . 1 1 . . . . Terminal Index 4 | . . . . . . . . . 1 1 . 1 . . . . 1 . . . . . . . . . . Fabricator Index 4 | . . . . . . . . . 1 1 . 1 . . . . 1 . . . . . . . . . . Repair Station Index 3 | . . . . . . . . . 2 . . 1 . . . . . . . . . . . . . . . Scanalyzer Index 1 | . . . . . . . . . . . . . . . . . 1 . . . . . . . . . . Garrison Index 2 | . . . . . . . . . 1 . . 1 . . . . . . . . . . . . . . . Alert Level 1 | . . . . . . . . . . . . . . . . . 1 . . . . . . . . . . Unreport Threat 7 | . . . . . . . . . . 2 . . . . . . 2 . . . . 3 . . . . . Locate Traps 24 | . . . . . . . . 3 2 2 . 4 . . . . 6 . . . . 4 3 . . . . Disarm Traps 3 | . . . . . . . . . . . . 1 . . . . . . . . . . 2 . . . . Reprogram Traps 3 | . . . . . . . . . 1 . . . . . . . 2 . . . . . . . . . . Dispatch Records 1 | . . . . . . . . . 1 . . . . . . . . . . . . . . . . . . Recall Investigation 8 | . . . . . . . . . 1 1 . . . . . . 1 . . . . 3 2 . . . . Recall Extermination 10 | . . . . . . . . . 1 2 . 2 . . . . 1 . . . . . 4 . . . . Recall Reinforcements 4 | . . . . . . . . . . . . . . . . . 1 . . . . 3 . . . . . Recall Assault 1 | . . . . . . . . . . . . . . . . . . . . . . 1 . . . . . Hauler Manifests 1 | . . . . . . . . . . . . . . . . . 1 . . . . . . . . . . Zone Layout 14 | . . . . . . . . 3 2 . . 1 . . . . 5 . . . . 1 2 . . . . Proto ID Catalog 1 | . . . . . 1 . . . . . . . . . . . . . . . . . . . . . . Fabricator Hacks 37 | . . . . . . . . . 2 6 . 13 . . . . 8 . . . . 6 2 . . . . Network Status 1 | . . . . . . . . . . . . 1 . . . . . . . . . . . . . . . Load Schematic 18 | . . . . . . . . . 1 3 . 6 . . . . 4 . . . . 3 1 . . . . Build 18 | . . . . . . . . . 1 3 . 6 . . . . 4 . . . . 3 1 . . . . Repair Station Hacks 32 | . . . . . . . 2 . 4 1 . 8 . . . . 6 . . . . 10 . 1 . . . Scan Component 14 | . . . . . . . 1 . 2 . . 4 . . . . 3 . . . . 4 . . . . . Repair 14 | . . . . . . . 1 . 2 . . 4 . . . . 3 . . . . 4 . . . . . Refit 4 | . . . . . . . . . . 1 . . . . . . . . . . . 2 . 1 . . . Recycling Unit Hacks 2 | . . . . . . . . . . 1 . . . . . . . . . . . . . . 1 . . Report Inventory 1 | . . . . . . . . . . 1 . . . . . . . . . . . . . . . . . Retrieve Components 1 | . . . . . . . . . . . . . . . . . . . . . . . . . 1 . . Scanalyzer 13 | . . . 3 . . . . . 3 . . 1 . . . . 1 . . . . 3 . . . 2 . Insert Component 3 | . . . 1 . . . . . 1 . . . . . . . . . . . . 1 . . . . . Analyze 3 | . . . 1 . . . . . 1 . . . . . . . . . . . . 1 . . . . . Retrieve Study 7 | . . . 1 . . . . . 1 . . 1 . . . . 1 . . . . 1 . . . 2 . Garrison Access Hacks 1 | . . . . . . . . . . . . . . . . . . . . . . . . . . 1 . Unlock Access 1 | . . . . . . . . . . . . . . . . . . . . . . . . . . 1 . Unauthorized Hacks 121 | . 7 . 6 . . . 1 5 15 9 . 18 . . . . 18 . . . . 19 14 1 3 5 . Terminals 98 | . 7 . 6 . . . 1 5 13 9 . 13 . . . . 14 . . . . 13 12 1 . 4 . Assimilate 6 | . . . . . . . . . . . . 2 . . . . 1 . . . . . 3 . . . . Botnet 81 | . 5 . 5 . . . 1 5 11 9 . 11 . . . . 9 . . . . 12 9 1 . 3 . Disrupt 6 | . 1 . . . . . . . 1 . . . . . . . 3 . . . . . . . . 1 . Operators 5 | . 1 . 1 . . . . . 1 . . . . . . . 1 . . . . 1 . . . . . Fabricators 9 | . . . . . . . . . 1 . . 3 . . . . 2 . . . . 3 . . . . . Fabnet 9 | . . . . . . . . . 1 . . 3 . . . . 2 . . . . 3 . . . . . Repair Stations 1 | . . . . . . . . . . . . . . . . . . . . . . 1 . . . . . Mechanics 1 | . . . . . . . . . . . . . . . . . . . . . . 1 . . . . . Recycling Units . | . . . . . . . . . . . . . . . . . . . . . . . . . . . . Scanalyzers . | . . . . . . . . . . . . . . . . . . . . . . . . . . . . Garrison Access 13 | . . . . . . . . . 1 . . 2 . . . . 2 . . . . 2 2 . 3 1 . Reprogram 12 | . . . . . . . . . 1 . . 2 . . . . 2 . . . . 2 2 . 2 1 . Eject 1 | . . . . . . . . . . . . . . . . . . . . . . . . . 1 . . Data Cores Recovered 3 | . . . . . . . . 1 2 . . . . . . . . . . . . . . . . . . Used . | . . . . . . . . . . . . . . . . . . . . . . . . . . . . Hacking Detections 117 | . 4 . 6 . . . 1 6 14 14 . 21 . . . . 12 . . . . 18 11 1 2 7 . Full Trace Events 53 | . 2 . 4 . . . 1 3 6 9 . 9 . . . . 6 . . . . 3 5 . . 5 . Feedback Events 3 | . . . . . . . . . . 2 . . . . . . . . . . . . . . . 1 . Corruption 1 | . . . . . . . . . . 1 . . . . . . . . . . . . . . . . . Hackware Fried 2 | . . . . . . . . . . 1 . . . . . . . . . . . . . . . 1 . Feedback Blocked 1 | . . . . . . . . . . . . . . . . . . . . . . . 1 . . . . Robot Schematics Acquired 5 | . . . . . . . . . . . . . . . 5 . . . . . . . . . . . . Robots Built . | . . . . . . . . . . . . . . . . . . . . . . . . . . . . Authchips . | . . . . . . . . . . . . . . . . . . . . . . . . . . . . Time . | . . . . . . . . . . . . . . . . . . . . . . . . . . . . Total Robot Build Rating . | . . . . . . . . . . . . . . . . . . . . . . . . . . . . Part Schematics Acquired 30 | . . . 1 . . . . . 3 1 . 1 . . 12 . 6 . . . . 5 1 . . . . Parts Built 20 | . . . . . . . . . 1 3 . 8 . . . . 4 . . . . 3 1 . . . . Authchips . | . . . . . . . . . . . . . . . . . . . . . . . . . . . . Time 1713 | . . . . . . . . . 73 123 . 426 . . . . 489 . . . . 450 152 . . . . Total Part Build Rating 108 | . . . . . . . . . 3 18 . 40 . . . . 23 . . . . 19 5 . . . . Part Studies Acquired 7 | . . . 1 . . . . . 1 . . 1 . . . . 1 . . . . 1 . . . 2 . Parts Repaired 14 | . . . . . . . 1 . 2 . . 4 . . . . 3 . . . . 4 . . . . . Time 542 | . . . . . . . 26 . 82 . . 142 . . . . 170 . . . . 122 . . . . . Parts Recycled . | . . . . . . . . . . . . . . . . . . . . . . . . . . . . Recycled Matter . | . . . . . . . . . . . . . . . . . . . . . . . . . . . . Retrieved Matter . | . . . . . . . . . . . . . . . . . . . . . . . . . . . . Retrieved Components 3 | . . . . . . . . . . . . . . . . . . . . . . . . . 3 . . Parts Scanalyzed 3 | . . . 1 . . . . . 1 . . . . . . . . . . . . 1 . . . . . Part Schematics Acquired 3 | . . . 1 . . . . . 1 . . . . . . . . . . . . 1 . . . . . Parts Damaged . | . . . . . . . . . . . . . . . . . . . . . . . . . . . . Bothacking | -11 -10 -10 -9 -9 -9 -8 -8 -8 -7 -6 -6 -6 -6 -6 -6 -5 -5 -5 -5 -5 -4 -4 -3 -3 -2 -1 -1 ------------ Run | Yrd Mat Min Mat Min Exi Min Mat Sto Fac Fac Was Fac Low Low Dat Pro Fac Upp Upp War Pro Fac Res Arm Res Acc Gar Used RIF Installer . | . . . . . . . . . . . . . . . . . . . . . . . . . . . . Robots Hacked 27 | . . . . . 2 . . . . 3 . . . 1 . . 3 1 . . . 6 1 3 7 . . Non-combat 4 | . . . . . 1 . . . . 2 . . . . . . . . . . . . . . 1 . . Combat 23 | . . . . . 1 . . . . 1 . . . 1 . . 3 1 . . . 6 1 3 6 . . Robot Hacks Applied 5 | . . . . . 2 . . . . 2 . . . . . . . . . . . . . . 1 . . parse_system 2 | . . . . . 2 . . . . . . . . . . . . . . . . . . . . . . find_chute 2 | . . . . . . . . . . 2 . . . . . . . . . . . . . . . . . find_fabricator 1 | . . . . . . . . . . . . . . . . . . . . . . . . . 1 . . Relay Couplers Released 7 | . . . . . . . . . . . . . . . . . 3 . . . . 1 . . 3 . . Ejected 1 | . . . . . . . . . . . . . . . . . . . . . . . . . 1 . . Machine Destruction 3 | . . . . . . . . . . . . . . . . . . . . . . 1 . . 2 . . Programmers 3 | . . . . . . . . . . . . . . . . . 3 . . . . . . . . . . Fabnet Peak Effective % 11 | . . . . . . . . . . 3 3 3 3 3 3 10 10 10 10 10 9 9 11 11 3 . . Autooverrided 22 | . . . . . . . . . . 1 . . . 1 . . 3 1 . . . 6 1 3 6 . . Robots Rewired . | . . . . . . . . . . . . . . . . . . . . . . . . . . . . Allies Hacked 3 | . . . . . . . . . . . . . . . . . . . . . . 1 2 . . . . Hacks Repelled . | . . . . . . . . . . . . . . . . . . . . . . . . . . . . Allies | -11 -10 -10 -9 -9 -9 -8 -8 -8 -7 -6 -6 -6 -6 -6 -6 -5 -5 -5 -5 -5 -4 -4 -3 -3 -2 -1 -1 -------- Run | Yrd Mat Min Mat Min Exi Min Mat Sto Fac Fac Was Fac Low Low Dat Pro Fac Upp Upp War Pro Fac Res Arm Res Acc Gar Total Allies 59 | . . 5 . . . . . . 2 1 1 7 . 1 . . 7 1 . . 1 14 7 3 8 1 . Largest Group 5 | . . 5 5 . . . . . 2 1 1 3 . 1 . . 3 1 . . 1 5 5 1 1 1 . Highest-Rated Group 304 | . . 90 90 . . . . . 32 29 31 87 . 32 . . 137 7 . . 116 304 230 64 148 59 . Highest-Rated Ally 148 | . . 31 31 . . . . . 16 29 31 29 . 32 . . 54 7 . . 116 116 47 64 148 59 . Total Orders 5 | . . . . . . . . . . . . 2 . . . . . . . . . 1 2 . . . . STAY 3 | . . . . . . . . . . . . 1 . . . . . . . . . 1 1 . . . . FOLLOW 2 | . . . . . . . . . . . . 1 . . . . . . . . . . 1 . . . . Ally Attacks 307 | . . . 76 . . . . . 11 9 . 51 . 4 . . 22 4 . . 2 54 35 6 25 8 . Total Damage 8692 | . . . 800 . . . . . 168 151 . 767 . 164 . . 1635 66 . . 109 1687 981 268 1634 262 . Kills 48 | . . . 11 . . . . . 1 1 . 6 . 1 . . 8 . . . 1 11 4 1 2 1 . Allies Corrupted 2 | . . . . . . . . . . . . . . . . . 1 . . . . 1 . . . . . Allies Melted 2 | . . . . . . . . . . . . . . . . . . . . . . 1 . . . 1 . Field Lobotomies 3 | . . . . . . . . . . . . 1 . . . . . . . . 1 . . . . 1 . Intel | -11 -10 -10 -9 -9 -9 -8 -8 -8 -7 -6 -6 -6 -6 -6 -6 -5 -5 -5 -5 -5 -4 -4 -3 -3 -2 -1 -1 ------- Run | Yrd Mat Min Mat Min Exi Min Mat Sto Fac Fac Was Fac Low Low Dat Pro Fac Upp Upp War Pro Fac Res Arm Res Acc Gar Active Infowar (turns) 11351 | . 516 96 1142 . . . . . 1236 1141 43 1188 88 168 34 155 1022 213 96 258 159 996 754 246 1421 379 . Sensors 4313 | . 516 96 1142 . . . . . . . 40 . . . . . . 213 96 248 159 130 . . 1371 302 . Terrain 9230 | . . . . . . . . . 1236 1141 43 1188 88 168 34 155 1022 213 96 245 159 996 731 246 1405 64 . Seismic 493 | . . . . . . . . . 318 . . . . . . . . . . . . . . . . 175 . Cloaking 368 | . . . . . . . . . . . . . . . . . 38 . . 2 . 1 123 176 4 24 . ECM 77 | . . . . . . . . . . . . . . . . . . . . . . . . . . 77 . Robot Analysis Total 3 | . 1 . . . . . . . . . . . . . . . 1 . . . . . 1 . . . . Derelict Logs Recovered 5 | . . 1 . 1 . . . . . . . . . 1 . 1 . . . . 1 . . . . . . Drone Launches 2 | . . . . . . . . . . . . . . . . . 2 . . . . . . . . . . Drone Recoveries . | . . . . . . . . . . . . . . . . . . . . . . . . . . . . Exploration | -11 -10 -10 -9 -9 -9 -8 -8 -8 -7 -6 -6 -6 -6 -6 -6 -5 -5 -5 -5 -5 -4 -4 -3 -3 -2 -1 -1 ------------- Run | Yrd Mat Min Mat Min Exi Min Mat Sto Fac Fac Was Fac Low Low Dat Pro Fac Upp Upp War Pro Fac Res Arm Res Acc Gar Turns Passed 18268 | 60 996 96 1304 692 445 517 1324 1446 1410 1141 43 1730 113 168 34 200 1095 213 96 288 159 1122 1070 246 1521 623 116 Spaces Moved 26915 | 34 460 59 495 331 206 234 472 438 2429 2658 101 3642 282 489 124 480 2383 562 287 876 275 2783 1986 479 2690 1463 197 Core 71 | 9 . . . . . . . . . 14 . . . . . . . . . . . . . . . . 48 Treads 2796 | 25 460 59 495 331 206 234 472 438 76 . . . . . . . . . . . . . . . . . . Legs . | . . . . . . . . . . . . . . . . . . . . . . . . . . . . Wheels . | . . . . . . . . . . . . . . . . . . . . . . . . . . . . Hover . | . . . . . . . . . . . . . . . . . . . . . . . . . . . . Flight 24048 | . . . . . . . . . 2353 2644 101 3642 282 489 124 480 2383 562 287 876 275 2783 1986 479 2690 1463 149 Fastest Speed 8 | 50 160 160 160 200 213 213 213 200 29 26 26 26 26 26 26 26 21 21 21 18 18 18 16 16 14 8 14 Average Speed 40 | 135 160 160 188 200 213 213 220 213 37 27 26 26 26 26 26 26 26 21 21 19 18 18 16 16 15 15 25 Slowest Speed 300 | 160 160 160 240 213 213 213 221 240 200 300 26 99 26 26 26 26 28 21 21 21 98 22 18 19 96 89 50 Overloaded Moves 125 | . . . . . . . . . . . . . . . . . . . . . . . . . . 108 17 Propulsion Burnouts . | . . . . . . . . . . . . . . . . . . . . . . . . . . . . Robots Hopped 177 | . . . . . . . . . 12 13 . 43 1 . . 1 32 . . . 2 25 11 3 11 21 2 Potential Cave-ins 23 | . . . . . . . . . . . . 2 . . . . 2 . . . . 6 . 13 . . . Cave-ins Triggered 4 | . . . . . . . . . . . . . . . . . . . . . . 2 . 2 . . . Exploration Rate (%) 51 | 4 73 16 55 64 59 54 30 53 50 44 83 66 44 68 68 67 52 73 49 95 52 55 37 22 47 35 35 Regions Visited 27 Branch Regions 14 Pre-discovered Areas 4 | . . . . 2 1 . . . . . . . . . 1 . . . . . . . . . . . . Known Exits Taken 18 | . 1 . 1 1 1 1 1 . . . . 1 . 1 . . 1 1 1 1 1 1 1 1 1 1 . Unknown Exits Taken 7 | 1 . 1 . . . . . 1 1 . . . 1 . 1 1 . . . . . . . . . . . Scrap Searched 16 | . . . . 2 . 1 . . . . . . 1 4 . 1 . 2 2 . 3 . . . . . . Spaces Dug 317 | . . . 2 . . . 2 4 17 28 2 54 . 3 . 3 20 7 2 . 1 62 33 23 34 17 3 Terrain Destroyed 755 | . 15 . 46 . . 60 48 112 62 28 2 99 . 3 . 29 20 7 2 . 1 62 33 23 34 23 46 Melee 316 | . . . 2 . . . 2 4 17 28 2 54 . 3 . 3 19 7 2 . 1 62 33 23 34 17 3 Projectile 1 | . . . . . . . . . . . . . . . . . 1 . . . . . . . . . . AOE 438 | . 15 . 44 . . 60 46 108 45 . . 45 . . . 26 . . . . . . . . . 6 43 Terrain Rammed . | . . . . . . . . . . . . . . . . . . . . . . . . . . . . Walls Destroyed . | . . . . . . . . . . . . . . . . . . . . . . . . . . . . Machines Disabled . | . . . . . . . . . . . . . . . . . . . . . . . . . . . . Actions | -11 -10 -10 -9 -9 -9 -8 -8 -8 -7 -6 -6 -6 -6 -6 -6 -5 -5 -5 -5 -5 -4 -4 -3 -3 -2 -1 -1 --------- Run | Yrd Mat Min Mat Min Exi Min Mat Sto Fac Fac Was Fac Low Low Dat Pro Fac Upp Upp War Pro Fac Res Arm Res Acc Gar Total 32541 | 46 598 60 717 353 211 244 645 819 2870 2960 112 4200 307 523 125 539 2759 642 318 984 376 3231 2620 591 3678 1766 247 Wait 4294 | . 38 . 77 3 . 1 88 243 293 226 9 439 18 32 . 50 328 72 27 87 97 343 580 84 909 235 15 Move 26551 | 33 459 58 494 330 205 233 471 437 2404 2632 100 3557 279 488 123 477 2322 561 286 875 271 2732 1963 473 2672 1422 194 Hop 161 | . . . . . . . . . 12 13 . 41 1 . . 1 28 . . . 1 25 11 2 6 19 1 Pick Up 128 | 5 14 . 19 3 1 . 2 10 14 8 . 9 . . . . 10 . 1 1 1 5 3 . 9 12 1 Fast Attach 83 | 5 1 . 2 . . . 3 . 15 1 . 8 . . 1 . 10 . . 3 . 11 5 . 9 9 . Attach 70 | 2 . . 2 . . . 1 3 17 5 . 5 . . . 1 6 . 1 . . 3 2 . 7 12 3 Detach 21 | 1 . . . . . . . . 11 1 . . . . . . 1 . . . . 1 . . 1 5 . Swap 200 | . 12 2 27 4 2 1 15 36 7 8 1 16 4 . . 2 10 2 1 13 3 10 10 5 1 8 . Drop 138 | . 10 . 15 6 1 . 5 15 25 8 . 7 . . 1 . 8 . . 5 1 7 5 2 7 9 1 Fire 293 | . 60 . 78 3 . 8 56 58 9 . . 9 . . . 3 4 . . . 1 . . . . 2 2 Melee 482 | . 2 . 2 . 2 1 2 8 33 55 2 79 5 3 . 5 32 7 2 . 1 79 41 25 57 33 6 Ram 7 | . . . . . . . . . . 3 . . . . . . . . . . . . . . . . 4 Kick . | . . . . . . . . . . . . . . . . . . . . . . . . . . . . Crush 18 | . 2 . 1 4 . . 2 9 . . . . . . . . . . . . . . . . . . . Escape Stasis 95 | . . . . . . . . . 30 . . 30 . . . . . . . . . 15 . . . . 20 Rewire . | . . . . . . . . . . . . . . . . . . . . . . . . . . . . Trap . | . . . . . . . . . . . . . . . . . . . . . . . . . . . . Miscellaneous . | . . . . . . . . . . . . . . . . . . . . . . . . . . . . Route ------- -11/Scrapyard -10/Materials (discovered 4 exits: *Mat x2 / *Min x2) -10/Mines -9/Materials (discovered 2 exits: *Mat / *Min) -9/Mines (discovered 3 exits: *Mat x2 / *Exi) -9/Exiles -8/Mines -8/Materials (discovered 2 exits: *Sto x2) -8/Storage -7/Factory (discovered 4 exits: *Fac x3 / *Low) -6/Factory (discovered 2 exits: *Fac / *Low) -6/Waste -6/Factory (discovered 3 exits: *Fac / *Low x2) -6/Lower Caves -6/Lower Caves (discovered 2 exits: *Fac / *Dat) -6/Data Miner -5/Proximity Caves -5/Factory (discovered 8 exits: *Fac x4 / *Upp x2 / *Ext x2) -5/Upper Caves -5/Upper Caves -5/Warlord -4/Proximity Caves -4/Factory (discovered 3 exits: *Res / *Upp x2) -3/Research (discovered 4 exits: *Res / *Arm / Tes x2) -3/Armory (discovered 2 exits: *Res x2) -2/Research (discovered 2 exits: *Acc / *Qua) -1/Access (discovered 2 exits: Com / Gar) -1/Garrison History --------- Turn | Location | Event 26 | -11/Scrapyard | Discovered new exit (range 15) 61 | -11/Scrapyard | Entered Materials 61 | -10/Materials | Discovered new exit (range 8) 322 | -10/Materials | Discovered new exit (range 6) 327 | -10/Materials | Build established: Mutant 510 | -10/Materials | Discovered new exit (range 11) 672 | -10/Materials | Discovered new exit (range 15) 1004 | -10/Materials | Identified exit to Mines 1057 | -10/Materials | Entered Mines 1072 | -10/Mines | Learned Materials stockpile data 1121 | -10/Mines | Discovered new exit (range 8) 1142 | -10/Mines | Assisted by bots powering up and referring to "LRC-V3" 1153 | -10/Mines | Entered Materials 1153 | -9/Materials | Accompanied by 5 allies 1153 | -9/Materials | Evolved 2 slots: Propulsion x1, Utility x1 1158 | -9/Materials | Led the pair of lost Derelicts to an unsafe place 1248 | -9/Materials | Identified exit to Mines 1946 | -9/Materials | Discovered new exit (range 6) 2041 | -9/Materials | Build established: Scavenger-Mutant 2353 | -9/Materials | First assault squad dispatched 2457 | -9/Materials | Entered Mines 2465 | -9/Mines | Identified exit to Materials 2568 | -9/Mines | Received a Rocket Launcher from a helpful Derelict 2753 | -9/Mines | Learned location of Storage (-8) 3103 | -9/Mines | Found DCF Scrap (14 items) 3140 | -9/Mines | Deemed a non-threat by the Exiles lab entrance 3140 | -9/Mines | Discovered new exit (range 5) 3147 | -9/Mines | Identified exit to Exiles 3149 | -9/Mines | Entered Exiles 3204 | -9/Exiles | Met 8R-AWN 3241 | -9/Exiles | Met EX-HEX 3300 | -9/Exiles | Met EX-BIN 3326 | -9/Exiles | Aligned with FarCom system 3328 | -9/Exiles | Given EX-Vault access code 3377 | -9/Exiles | Opened EX-Vault 3395 | -9/Exiles | Found Field Lobotomy Kit 3411 | -9/Exiles | Build established: Mutant 3436 | -9/Exiles | Warned to stay clear of 0b10 Research branches 3502 | -9/Exiles | Met EX-DEC 3513 | -9/Exiles | Learned location of Zion (-7) 3577 | -9/Exiles | Discovered new exit (range 10) 3592 | -9/Exiles | Identified exit to Mines 3594 | -9/Exiles | Left Exiles lab with Field Lobotomy Kit 3594 | -9/Exiles | Entered Mines 4002 | -8/Mines | Core integrity fell below 50% 4102 | -8/Mines | Discovered exit to Materials (range 4) 4111 | -8/Mines | Entered Materials 4111 | -8/Materials | Evolved 2 slots: Utility x2 4159 | -8/Materials | Discovered new exit (range 11) 4395 | -8/Materials | Discovered new exit (range 7) 4457 | -8/Materials | Repaired Utility Shielding 5362 | -8/Materials | Identified exit to Storage 5435 | -8/Materials | Entered Storage 5869 | -8/Storage | Build established: Scavenger-Mutant 6493 | -8/Storage | Discovered new exit (range 16) 6881 | -8/Storage | Entered Factory 6881 | -7/Factory | Evolved 2 slots: Utility x2 6959 | -7/Factory | Discovered new exit (range 14) 7406 | -7/Factory | Garrison activated, responded to threat 7498 | -7/Factory | Discovered new exit (range 3) 7501 | -7/Factory | Discovered new exit (range 13) 7641 | -7/Factory | Central database locked down 7681 | -7/Factory | Search patrols dispatched 7682 | -7/Factory | Build established: Hacker-Scout 7797 | -7/Factory | Identified exit to Lower Caves 7852 | -7/Factory | Repaired Mic. Nuclear Core+? 7955 | -7/Factory | Fabricated Hacking Suite? 8002 | -7/Factory | Discovered new exit (range 12) 8036 | -7/Factory | Repaired Imp. Propulsion Shielding? 8291 | -7/Factory | Entered another Factory area 8291 | -6/Factory | Evolved 2 slots: Propulsion x1, Utility x1 8518 | -6/Factory | Discovered new exit (range 15) 8679 | -6/Factory | Fabricated Adv. System Shield? 8712 | -6/Factory | Hacking Suite fried by hacking feedback 8727 | -6/Factory | Discovered new exit (range 5) 9013 | -6/Factory | Central database locked down 9061 | -6/Factory | Fabricated Adv. System Shield? 9234 | -6/Factory | Fabricated Adv. System Shield? 9432 | -6/Factory | Sucked down chute 9432 | -6/Factory | Entered Waste 9433 | -6/Waste | Met a frightened Derelict 9443 | -6/Waste | Spotted C-40 Crusher 9447 | -6/Waste | EMP discharged 9453 | -6/Waste | Spotted C-40 Crusher 9460 | -6/Waste | Spotted C-40 Crusher 9462 | -6/Waste | Spotted C-40 Crusher 9462 | -6/Waste | Spotted C-40 Crusher 9466 | -6/Waste | Spotted C-40 Crusher 9470 | -6/Waste | Discovered new exit (range 10) 9475 | -6/Waste | Entered Factory 9518 | -6/Factory | Repaired Imp. VTOL Module 9550 | -6/Factory | Repaired Imp. VTOL Module 9732 | -6/Factory | Discovered new exit (range 6) 9859 | -6/Factory | Fabricated Adv. Hacking Suite? 9954 | -6/Factory | Fabricated Adv. Hacking Suite? 10062 | -6/Factory | Discovered new exit (range 10) 10089 | -6/Factory | Fabricated Mic. Nuclear Core? 10221 | -6/Factory | Identified exit to Lower Caves 10354 | -6/Factory | Fabricated Adv. Hacking Suite? 10417 | -6/Factory | Garrison activated, responded to threat 10444 | -6/Factory | Repaired Imp. Propulsion Shielding 10482 | -6/Factory | Fabricated Mic. Nuclear Core? 10594 | -6/Factory | Fabricated Adv. Hacking Suite? 10875 | -6/Factory | Search patrols dispatched 10957 | -6/Factory | Assimilated C-45 Heavy ARC with FLK Orb 10958 | -6/Factory | Cargo convoy interrupted 11132 | -6/Factory | Repaired Mic. Nuclear Core+ 11205 | -6/Factory | Entered Lower Caves 11224 | -6/Lower Caves | Lost 3 allies 11226 | -6/Lower Caves | Build established: Hacker-Sprinter 11301 | -6/Lower Caves | Discovered new exit (range 19) 11318 | -6/Lower Caves | Entered another Lower Caves area 11346 | -6/Lower Caves | Discovered new exit (range 7) 11390 | -6/Lower Caves | Attracted the attention of an 0b10 base 11478 | -6/Lower Caves | Identified exit to Data Miner 11486 | -6/Lower Caves | Entered Data Miner 11487 | -6/Data Miner | Discovered new exit (range 6) 11492 | -6/Data Miner | Met Data Miner 11497 | -6/Data Miner | Learned location of Section 7 (-2) 11497 | -6/Data Miner | Acquired the access code to Warlord's prototype stash 11501 | -6/Data Miner | Received God Mode back door access code from Data Miner 11520 | -6/Data Miner | Entered Proximity Caves 11523 | -5/Proximity Caves | Spotter reported a threat 11718 | -5/Proximity Caves | Discovered new exit (range 8) 11720 | -5/Proximity Caves | Entered Factory 11720 | -5/Factory | Evolved 2 slots: Utility x2 11794 | -5/Factory | Identified exit to Factory 11794 | -5/Factory | Identified exit to Upper Caves 11794 | -5/Factory | Identified exit to Extension 12002 | -5/Factory | Fabricated Exp. Propulsion Shielding? 12087 | -5/Factory | Build established: Wizard-Scout 12117 | -5/Factory | Incoming investigation squad redirected 12203 | -5/Factory | Fabricated Exp. Cesium-ion Thruster? 12218 | -5/Factory | Repaired Adv. Terrain Scanner 12279 | -5/Factory | Repaired Imp. VTOL Module 12283 | -5/Factory | Fabricated Exp. Cesium-ion Thruster? 12341 | -5/Factory | Repaired Imp. VTOL Module 12414 | -5/Factory | Local machine network offline 12437 | -5/Factory | Fabricated Exp. Cesium-ion Thruster? 12467 | -5/Factory | Unchained authorized (CL-0N3) 12581 | -5/Factory | Incoming investigation squad redirected 12815 | -5/Factory | Entered Upper Caves 12852 | -5/Upper Caves | Attracted the attention of an 0b10 checkpoint 13019 | -5/Upper Caves | Unchained authorized (CL-0N3) 13025 | -5/Upper Caves | Discovered new exit (range 15) 13027 | -5/Upper Caves | Identified exit to Upper Caves 13028 | -5/Upper Caves | Entered another Upper Caves area 13042 | -5/Upper Caves | Entered an active Warlord outpost 13044 | -5/Upper Caves | Learned 8 Factory zone layouts 13044 | -5/Upper Caves | Learned 8 Research zone layouts 13044 | -5/Upper Caves | Learned Research security intel 13121 | -5/Upper Caves | Discovered new exit (range 12) 13123 | -5/Upper Caves | Identified exit to Warlord 13124 | -5/Upper Caves | Entered Warlord 13135 | -5/Warlord | System corruption cleaned by Quarantine Array 13221 | -5/Warlord | Visited the Vortex Lab 13223 | -5/Warlord | Found Prototype Energy Cannon 13223 | -5/Warlord | Identified Vortex Cannon 13225 | -5/Warlord | Found Prototype Energy Gun 13225 | -5/Warlord | Identified Vortex Rail 13243 | -5/Warlord | Warlord's base attacked by MAIN.C 13282 | -5/Warlord | Opened Warlord's prototype stash 13301 | -5/Warlord | Found Prototype Device 13301 | -5/Warlord | Identified System Purifier 13305 | -5/Warlord | Found Prototype Device 13305 | -5/Warlord | Identified Exp. Cloaking Device 13327 | -5/Warlord | Found Prototype Special Weapon 13327 | -5/Warlord | Identified RU-N14's Throwing Claymores v3 13389 | -5/Warlord | Met Warlord 13407 | -5/Warlord | Opened side exit 13411 | -5/Warlord | Discovered new exit (range 9) 13412 | -5/Warlord | Identified exit to Proximity Caves 13412 | -5/Warlord | Entered Proximity Caves 13523 | -4/Proximity Caves | Spotted B-86 Titan 13524 | -4/Proximity Caves | Assimilated B-86 Titan with FLK Orb 13571 | -4/Proximity Caves | Entered Factory 13571 | -4/Factory | Accompanied by 1 ally 13571 | -4/Factory | Evolved 2 slots: Utility x2 13769 | -4/Factory | Unchained authorized (CL-0N3) 13817 | -4/Factory | Repaired Mic. Fission Core 13895 | -4/Factory | Spotted B-86 Titan 13906 | -4/Factory | Discovered new exit (range 9) 14005 | -4/Factory | Fabricated Exp. Utility Shielding? 14145 | -4/Factory | Repaired Exp. Propulsion Shielding 14149 | -4/Factory | Discovered new exit (range 17) 14194 | -4/Factory | Repaired Adv. Terrain Scanner? 14250 | -4/Factory | Garrison activated, responded to threat 14261 | -4/Factory | Repaired Exp. Cesium-ion Thruster 14298 | -4/Factory | Identified exit to Upper Caves 14326 | -4/Factory | Spotted Hotshot 14397 | -4/Factory | Discovered new exit (range 16) 14407 | -4/Factory | Identified exit to Research 14410 | -4/Factory | A-15 Conveyor reconstituted as Combat Programmer 14410 | -4/Factory | Spotted Combat Programmer 14495 | -4/Factory | Fabricated Exp. Terrain Scan Processor? 14579 | -4/Factory | Crushed by falling debris 14581 | -4/Factory | Crushed by falling debris 14610 | -4/Factory | Fabricated Exp. Hacking Suite? 14693 | -4/Factory | Entered Research 14693 | -3/Research | Evolved 2 slots: Power x1, Propulsion x1 14694 | -3/Research | Identified exit to Armory 14940 | -3/Research | Identified exit to Testing 15001 | -3/Research | Found Prototype Launcher 15001 | -3/Research | Identified Tesla Bomb Launcher 15099 | -3/Research | Fabricated Exp. Propulsion Shielding? 15383 | -3/Research | Garrison activated, responded to threat 15385 | -3/Research | Local machine network offline 15477 | -3/Research | Discovered new exit (range 19) 15662 | -3/Research | Spotted B-86 Titan 15763 | -3/Research | Entered Armory 15908 | -3/Armory | Identified exit to Research 15963 | -3/Armory | Build established: Wizard-Ninja 15987 | -3/Armory | Local machine network offline 15988 | -3/Armory | Crushed by falling debris 15992 | -3/Armory | Crushed by falling debris 16009 | -3/Armory | Entered Research 16009 | -2/Research | Warlord forces began assault on 0b10 16009 | -2/Research | Evolved 2 slots: Utility x2 16018 | -2/Research | Spotted B-90 Cyclops 16040 | -2/Research | Lost 7 parts (1p1n4u1w) 16119 | -2/Research | Research machine network offline 16132 | -2/Research | Spotted B-90 Cyclops 16201 | -2/Research | Discovered new exit (range 16) 16205 | -2/Research | Found Prototype Processor 16205 | -2/Research | Identified Exp. Core Analyzer 16428 | -2/Research | Spotted Striker 16435 | -2/Research | Spotted Striker 16462 | -2/Research | Discovered new exit (range 12) 16488 | -2/Research | Identified exit to Quarantine 16616 | -2/Research | Spotted Striker 16623 | -2/Research | Spotted Executioner 16660 | -2/Research | Spotted Executioner 16672 | -2/Research | Borebot progress halted 16673 | -2/Research | Spotted Striker 16696 | -2/Research | Borebot progress halted 16700 | -2/Research | Spotted B-90 Cyclops 16767 | -2/Research | Build established: Wizard-Scout 16770 | -2/Research | Met up with Warlord 17011 | -2/Research | Warlord invited to help at Command 17011 | -2/Research | Given Cave Seal Controls access code 17011 | -2/Research | Identified exit to Access 17165 | -2/Research | Spotted Executioner 17223 | -2/Research | Met DD-05H 17530 | -2/Research | Entered Access 17530 | -1/Access | Evolved 2 slots: Utility x2 17572 | -1/Access | Identified exit to Command 17587 | -1/Access | Incoming investigation squad redirected 17597 | -1/Access | Assimilated C-57 Dissector with FLK Orb 17598 | -1/Access | Incoming investigation squad redirected 17615 | -1/Access | Lost 3 allies 17631 | -1/Access | Lost 6 parts (1p3u2w) 17696 | -1/Access | Energy Cycler disabled 17777 | -1/Access | Incoming investigation squad redirected 17785 | -1/Access | Spotted B-99 Colossus 17790 | -1/Access | Adv. System Shield fried by hacking feedback 17814 | -1/Access | Incoming investigation squad redirected 17838 | -1/Access | Lost 3 parts (2n1u) 18077 | -1/Access | Build established: Hacker-Ninja 18153 | -1/Access | Identified exit to Garrison 18153 | -1/Access | Entered Garrison 18163 | -1/Garrison | Lost 7 parts (1p3n3u) 18181 | -1/Garrison | Triggered checkpoint 18227 | -1/Garrison | Triggered checkpoint 18241 | -1/Garrison | Released all parts (7) 18246 | -1/Garrison | Core integrity fell below 50% 18260 | -1/Garrison | Core integrity fell below 20% 18263 | -1/Garrison | Spotted B-99 Colossus 18269 | -1/Garrison | Destroyed by B-99 Colossus with Multirail Last Messages --------------- Released Exp. Q-thruster. Released Adv. Terrain Scan Processor. Released Adv. Hacking Suite. Released Adv. Signal Interpreter. Released Exp. Heat Sink. Released Exp. Cloaking Device. Field strength at 9. Stasis field depleted. Slammed into S-43 Plague. S-43 Plague destroyed. The unstable cave ceiling collapses. [Achievement: Let Me Out Of Here] Slug penetrates Wall. Penetrated by Slug. Slug penetrates Wall. Penetrated by Slug. Slug penetrates Wall. S-43 Plague destroyed. Penetrated by Slug. [Achievement: 20k Club] Map ----- +----------------------------------------------------+ | ?????????????????????????????????????????????????? | | ?????????????????????????????????????????????????? | | ?????????????????????????????????????????????????? | | ?????????????????????????????????????????????????? | | ?????????????????????????????????????????????????? | | ?????????????????????????????????????????????????? | | ?????????????????????????????????????????????????? | | ?????????????????????????????????????????????????? | | ?????????????????????????????????????????????????? | | ?????????????????????????????????????????????????? | | ?????????????????????? ????????????????????????? | | ?????????????????????# ????????????????????????? | | ?????????????????????# ????????????????????????? | | ?????????????????????# ????????????????????????? | | ?????????????????????# ????????????????????????? | | ?????????????????????# ????????????????????????? | | ?????????????????????# ????????????????????????? | | ?????????????????????# #???????????????????????? | | ???????????????????C?# #???????????????????????? | | ???????????? ##""""## #???????????????????????? | | ??????????? #???????????????????????? | | ???????????? g #???????????????????????? | | ?????????????? g b ? #???????????????????????? | | ??????????? ??# ?# %#???????????????????????? | | ??????????# ## ## ###?????????????????????? | | ?????????g" g @ #?????????????????????? | | ?????????g" BB "g#?????????????????????? | | ??????????" BB "g#?????????????????????? | | ?????????g" "g#?????????????????????? | | ??????????# ## #; s##??????????????????????? | | ??????????# ## ## s"###########?????#####??? | | ??????????# s ss #????##" #??? | | ??????????# #????#"#++##?? | | ??????????# [ p #????##!!!!#?? | | ??????????## ##""""######+##+### #?????#! !#?? | | ????????????????ssss??????s=????p #?????#! !#?? | | ??????????????????????????###???# #?????#! !#?? | | ????????????????????????????????# #?????#! !#?? | | ?????????????????????????????#### #??#??## ##?? | | ?????????????????????????????# # # #???# #??? | | ????????????????????????????## # ###### #??? | | ????????????????????######### p #??? | | ????????????????????# % #??? | | ????????????????????# ! [ # ####??? | | ????????????????????# # #?????? | | ????????????????????# ##"##?????? | | ????????????????????# [[ ## #######? | | ????????????????????# [ # #? | | ????????????????????# # ## #######? | | ????????????????????#[ % # # ### #??????? | +----------------------------------------------------+ Best States ------------- Heat Dissipation 78 Energy Generation 35 Energy Capacity 700 Matter Stores 300 Matter Capacity 800 Sight Range 16 Robot Scan Range 18 Terrain Scan Range 20 Terrain Scan Density 210 ECM Strength 2 Cloak Strength 4 Base Temperature (-) 100 Armor Coverage 150 Propulsion Shielding 90 Utility Shielding 90 Phase Shifting 15 Evasion (%) 82 Recoil Reduction 3 Offensive Hacking 58 Defensive Hacking 56 Item Schematics ----------------- Hacking Suite | -9/Materials | Scanalyzed Imp. VTOL Module | -7/Factory | Scanalyzed Imp. Propulsion Shielding | -7/Factory | Hacked Mic. Nuclear Core | -7/Factory | Hacked Adv. System Shield | -6/Factory | Hacked Adv. Hacking Suite | -6/Factory | Hacked Combat Drone Bay | -6/Data Miner | Free Lgt. Regenerative Plating | -6/Data Miner | Free Graphene Brace | -6/Data Miner | Free Enh. Armored Leg | -6/Data Miner | Free Imp. Matter Compressor | -6/Data Miner | Free Hvy. Gatling Laser | -6/Data Miner | Free Shield Leg | -6/Data Miner | Free HERF Cannon | -6/Data Miner | Free Thunder Leg | -6/Data Miner | Free Imp. Point Defense System | -6/Data Miner | Free Adv. Force Field | -6/Data Miner | Free Adv. Weapon Cycler | -6/Data Miner | Free Exp. Cesium-ion Thruster | -5/Factory | Hacked Exp. Propulsion Shielding | -5/Factory | Hacked Mic. Fission Core | -5/Factory | Hacked Adv. Sensor Array | -5/Factory | Hacked Lrn. Sensor Array | -5/Factory | Hacked Exp. Utility Shielding | -5/Factory | Hacked Exp. Hacking Suite | -4/Factory | Hacked Lrn. Terrain Scanner | -4/Factory | Hacked Adv. System Restoration Module | -4/Factory | Scanalyzed Exp. Terrain Scan Processor | -4/Factory | Hacked Exp. System Shield | -4/Factory | Hacked Mic. Antimatter Reactor | -3/Research | Hacked Robot Schematics ------------------ L-41 Fighter | -6/Data Miner | Free R-10 Processor | -6/Data Miner | Free X-72 Disruptor | -6/Data Miner | Free L-61 Swordsman | -6/Data Miner | Free M-30 Cleanser | -6/Data Miner | Free Fabricated ------------ Hacking Suite | x1 | -7/Factory Adv. System Shield | x1 | -6/Factory Adv. System Shield | x1 | -6/Factory Adv. System Shield | x1 | -6/Factory Adv. Hacking Suite | x1 | -6/Factory Adv. Hacking Suite | x1 | -6/Factory Mic. Nuclear Core | x2 | -6/Factory Adv. Hacking Suite | x1 | -6/Factory Mic. Nuclear Core | x2 | -6/Factory Adv. Hacking Suite | x1 | -6/Factory Exp. Propulsion Shielding | x1 | -5/Factory Exp. Cesium-ion Thruster | x1 | -5/Factory Exp. Cesium-ion Thruster | x1 | -5/Factory Exp. Cesium-ion Thruster | x1 | -5/Factory Exp. Utility Shielding | x1 | -4/Factory Exp. Terrain Scan Processor | x1 | -4/Factory Exp. Hacking Suite | x1 | -4/Factory Exp. Propulsion Shielding | x1 | -3/Research Repaired ---------- Utility Shielding | 46% | -8/Materials Mic. Nuclear Core | 74% | -7/Factory Imp. Propulsion Shielding | 20% | -7/Factory Imp. VTOL Module | 56% | -6/Factory Imp. VTOL Module | 64% | -6/Factory Imp. Propulsion Shielding | 85% | -6/Factory Mic. Nuclear Core | 14% | -6/Factory Adv. Terrain Scanner | 20% | -5/Factory Imp. VTOL Module | 30% | -5/Factory Imp. VTOL Module | 38% | -5/Factory Mic. Fission Core | 50% | -4/Factory Exp. Propulsion Shielding | 70% | -4/Factory Adv. Terrain Scanner | 54% | -4/Factory Exp. Cesium-ion Thruster | 95% | -4/Factory Studied --------- Lgt. Treads | -9/Materials | Hacked Mic. Nuclear Core | -7/Factory | Hacked Mni. Grenade Launcher | -6/Factory | Hacked Xenon Bombardment Thruster | -5/Factory | Hacked Mic. Fission Core | -4/Factory | Hacked Mic. Antimatter Reactor | -1/Access | Hacked Power Maul | -1/Access | Hacked Alien Tech Used ----------------- None Achievements -------------- 20k Club All-out Warlord DIY Cooler Doshington Hack The Planet Hammer Time I Have Friends Everywhere Knowing Is Half The Battle Let Me Out Of Here Maximum Efficiency Recruitment Drive Rockin' Loadout Welcome To The Revolution Challenges ------------ None Game ------ Seed FlakCombatKatana Manual? 0 Play Time 05:25:19 Cumulative 29.7 hours Start 2026.01.16 @ 10:31:33 End 2026.01.16 @ 20:19:12 Sessions 3 Manual Loads 0 Difficulty Rogue Special Mode None Game No. 28 Rogue 28 Adventurer 0 Explorer 0 Win Type - Total 0 Types 0/0/0/0/0/0/0/0/0/0 Lore% 14 Gallery% 29 Achievement% 30 Wizard Run 0 Options --------- Layout 1 ASCII 0 Keyboard 1 Movement Vi Keybinds 0 Fullscreen 1 Font 24/Smallcaps Map View 50x35 Zoom Use 0% Tactical HUD 0 Map Filters NONE Filters NONE Steam 1 RUN: 4e8b2a04-f2ec-40b7-915f-063a18a52e38